[Event "*** SCC Grand Prix: Titled Tuesday Blitz"]
[Site "Chess.com"]
[Date "2020.08.25"]
[Round "9"]
[White "Chessbard1972"]
[Black "EddieMarsalla"]
[Result "0-1"]
[WhiteElo "2398"]
[BlackElo "2535"]
[TimeControl "180+1"]
[EndTime "11:45:56 PDT"]
[Termination "EddieMarsalla won by resignation"]

1. d4 {[%clk 0:03:00.6]} 1... d5 {[%clk 0:02:59.8]} 2. c4 {[%clk 0:03:00.1]}
2... Bf5 {[%clk 0:03:00.2]} 3. Nc3 {[%clk 0:02:57.5]} 3... e6 {[%clk 0:02:59.7]}
4. Qb3 {[%clk 0:02:56.3]} 4... Nc6 {[%clk 0:02:59.1]} 5. Nf3 {[%clk 0:02:15.9]}
5... Nb4 {[%clk 0:02:58.8]} 6. e4 {[%clk 0:02:06.7]} 6... dxe4 {[%clk
0:02:59.7]} 7. a3 {[%clk 0:01:51.3]} 7... Nc6 {[%clk 0:02:58.5]} 8. d5 {[%clk
0:01:48.8]} 8... exf3 {[%clk 0:02:53.5]} 9. dxc6 {[%clk 0:01:44.1]} 9... bxc6
{[%clk 0:02:51.4]} 10. Be3 {[%clk 0:01:35.8]} 10... Bd6 {[%clk 0:02:47]} 11. c5
{[%clk 0:01:32.3]} 11... Be5 {[%clk 0:02:45.3]} 12. Rd1 {[%clk 0:01:30.1]} 12...
Qb8 {[%clk 0:02:44.2]} 13. Qa2 {[%clk 0:01:15.7]} 13... Ne7 {[%clk 0:02:38.3]}
14. gxf3 {[%clk 0:01:12]} 14... O-O {[%clk 0:02:30.9]} 15. Bd3 {[%clk
0:01:07.2]} 15... Rd8 {[%clk 0:02:27.8]} 16. Bxf5 {[%clk 0:01:02.1]} 16... Bxc3+
{[%clk 0:02:27.4]} 17. bxc3 {[%clk 0:00:59]} 17... Rxd1+ {[%clk 0:02:27.4]} 18.
Kxd1 {[%clk 0:00:59.1]} 18... Nxf5 {[%clk 0:02:27.4]} 19. Ke2 {[%clk 0:00:58.3]}
19... Qb5+ {[%clk 0:02:22.3]} 20. c4 {[%clk 0:00:56.7]} 20... Qa4 {[%clk
0:02:12.6]} 21. Rb1 {[%clk 0:00:49.4]} 21... Rd8 {[%clk 0:02:08.6]} 22. Qb3
{[%clk 0:00:47.8]} 22... Qa6 {[%clk 0:02:01.4]} 23. Rd1 {[%clk 0:00:38]} 23...
Re8 {[%clk 0:01:48]} 24. Rd7 {[%clk 0:00:35.2]} 24... Qc8 {[%clk 0:01:40]} 25.
Qd3 {[%clk 0:00:32.5]} 25... h6 {[%clk 0:01:39.8]} 26. Bf4 {[%clk 0:00:30.1]}
26... e5 {[%clk 0:01:17.5]} 27. Be3 {[%clk 0:00:13.3]} 27... Nd4+ {[%clk
0:01:16.2]} 28. Kf1 {[%clk 0:00:10.5]} 28... Qxd7 {[%clk 0:01:15.5]} 0-1

[Event "*** SCC Grand Prix: Titled Tuesday Blitz"]
[Site "Chess.com"]
[Date "2020.08.25"]
[Round "9"]
[White "annamaja"]
[Black "frequentblunders"]
[Result "1-0"]
[WhiteElo "2240"]
[BlackElo "2064"]
[TimeControl "180+1"]
[EndTime "11:46:06 PDT"]
[Termination "annamaja won by checkmate"]

1. e4 {[%clk 0:03:00.9]} 1... e6 {[%clk 0:02:52.4]} 2. d4 {[%clk 0:03:00.1]}
2... c5 {[%clk 0:02:53.3]} 3. Nf3 {[%clk 0:02:59.4]} 3... cxd4 {[%clk 0:02:52]}
4. Nxd4 {[%clk 0:03:00.3]} 4... Nf6 {[%clk 0:02:52.4]} 5. Bd3 {[%clk 0:03:00]}
5... Nc6 {[%clk 0:02:52.2]} 6. Nb3 {[%clk 0:02:58.1]} 6... d5 {[%clk 0:02:50.3]}
7. Nc3 {[%clk 0:02:56.7]} 7... Bb4 {[%clk 0:02:48.8]} 8. exd5 {[%clk 0:02:54.8]}
8... exd5 {[%clk 0:02:49.7]} 9. O-O {[%clk 0:02:53.5]} 9... O-O {[%clk
0:02:48.1]} 10. Bg5 {[%clk 0:02:51.4]} 10... Be6 {[%clk 0:02:45.3]} 11. Ne2
{[%clk 0:02:47.9]} 11... h6 {[%clk 0:02:42.7]} 12. Bh4 {[%clk 0:02:47.1]} 12...
Be7 {[%clk 0:02:39.1]} 13. Nbd4 {[%clk 0:02:41.4]} 13... Bg4 {[%clk 0:02:33.5]}
14. f3 {[%clk 0:02:37.6]} 14... Bh5 {[%clk 0:02:29.3]} 15. g4 {[%clk 0:02:21.3]}
15... Nxg4 {[%clk 0:02:17.4]} 16. Bxe7 {[%clk 0:02:19.5]} 16... Qxe7 {[%clk
0:02:09.9]} 17. Nxc6 {[%clk 0:02:19.6]} 17... bxc6 {[%clk 0:01:33]} 18. fxg4
{[%clk 0:02:18.6]} 18... Bxg4 {[%clk 0:01:25]} 19. Qd2 {[%clk 0:02:13.7]} 19...
Rae8 {[%clk 0:01:20.6]} 20. Ng3 {[%clk 0:02:10.1]} 20... Qh4 {[%clk 0:01:05.3]}
21. Rf2 {[%clk 0:01:54.4]} 21... g6 {[%clk 0:00:59.1]} 22. Re1 {[%clk
0:01:49.5]} 22... Rxe1+ {[%clk 0:00:58.2]} 23. Qxe1 {[%clk 0:01:50.4]} 23... f5
{[%clk 0:00:58]} 24. Qe5 {[%clk 0:01:42.3]} 24... Qg5 {[%clk 0:00:44.1]} 25. Kg2
{[%clk 0:01:31.1]} 25... h5 {[%clk 0:00:40.3]} 26. Qf4 {[%clk 0:01:22.9]} 26...
Qf6 {[%clk 0:00:36.4]} 27. c4 {[%clk 0:01:21.9]} 27... h4 {[%clk 0:00:34.7]} 28.
Nf1 {[%clk 0:01:16.7]} 28... g5 {[%clk 0:00:34]} 29. Qe3 {[%clk 0:01:04.5]}
29... f4 {[%clk 0:00:33.7]} 30. Qxa7 {[%clk 0:00:57.5]} 30... h3+ {[%clk
0:00:31.7]} 31. Kg1 {[%clk 0:00:57.4]} 31... Be6 {[%clk 0:00:23.1]} 32. Qh7#
{[%clk 0:00:57.2]} 1-0

[Event "*** SCC Grand Prix: Titled Tuesday Blitz"]
[Site "Chess.com"]
[Date "2020.08.25"]
[Round "9"]
[White "kleopl"]
[Black "alfiefischer77"]
[Result "0-1"]
[WhiteElo "2427"]
[BlackElo "2313"]
[TimeControl "180+1"]
[EndTime "11:46:12 PDT"]
[Termination "alfiefischer77 won by resignation"]

1. c4 {[%clk 0:03:00.9]} 1... Nf6 {[%clk 0:02:57.4]} 2. Nc3 {[%clk 0:03:00.4]}
2... e6 {[%clk 0:02:57.2]} 3. e4 {[%clk 0:02:59.2]} 3... d5 {[%clk 0:02:57.3]}
4. e5 {[%clk 0:02:59.2]} 4... d4 {[%clk 0:02:57.4]} 5. exf6 {[%clk 0:02:59.5]}
5... dxc3 {[%clk 0:02:57.7]} 6. bxc3 {[%clk 0:03:00.4]} 6... Qxf6 {[%clk
0:02:57.7]} 7. Nf3 {[%clk 0:03:00.8]} 7... Nc6 {[%clk 0:02:58.3]} 8. d4 {[%clk
0:02:59.3]} 8... e5 {[%clk 0:02:58.7]} 9. Be2 {[%clk 0:02:53.8]} 9... Bg4 {[%clk
0:02:50.6]} 10. O-O {[%clk 0:02:48]} 10... O-O-O {[%clk 0:02:03.9]} 11. Nxe5
{[%clk 0:02:46.9]} 11... Bxe2 {[%clk 0:01:58.7]} 12. Qxe2 {[%clk 0:02:47.8]}
12... Nxe5 {[%clk 0:01:57]} 13. dxe5 {[%clk 0:02:46.7]} 13... Qe6 {[%clk
0:01:55]} 14. f4 {[%clk 0:02:35.3]} 14... Bc5+ {[%clk 0:01:33.5]} 15. Be3 {[%clk
0:02:34.8]} 15... Qb6 {[%clk 0:01:33.3]} 16. Bxc5 {[%clk 0:02:32.5]} 16... Qxc5+
{[%clk 0:01:33.6]} 17. Kh1 {[%clk 0:02:33.2]} 17... Kb8 {[%clk 0:01:21.8]} 18.
Rab1 {[%clk 0:02:31.2]} 18... Rhe8 {[%clk 0:01:19.3]} 19. Rb5 {[%clk 0:02:26.5]}
19... Qc6 {[%clk 0:01:19]} 20. Rfb1 {[%clk 0:02:23.8]} 20... Rd7 {[%clk
0:00:45.3]} 21. h3 {[%clk 0:02:14.5]} 21... Red8 {[%clk 0:00:42]} 22. Rxb7+
{[%clk 0:02:12.8]} 22... Qxb7 {[%clk 0:00:42]} 23. Rxb7+ {[%clk 0:02:13.7]}
23... Kxb7 {[%clk 0:00:42.9]} 24. Qe4+ {[%clk 0:02:13.7]} 24... Kb6 {[%clk
0:00:39.1]} 25. Qxh7 {[%clk 0:02:12.3]} 25... g6 {[%clk 0:00:39.1]} 26. Qg7
{[%clk 0:02:11.2]} 26... Kc5 {[%clk 0:00:28.5]} 27. e6 {[%clk 0:02:10.8]} 27...
fxe6 {[%clk 0:00:25.5]} 28. Qe5+ {[%clk 0:02:10.7]} 28... Kxc4 {[%clk
0:00:25.1]} 29. Qxe6+ {[%clk 0:02:11]} 29... Kxc3 {[%clk 0:00:25.4]} 30. Qxg6
{[%clk 0:02:11.2]} 30... c5 {[%clk 0:00:24.2]} 31. h4 {[%clk 0:02:07.3]} 31...
c4 {[%clk 0:00:22]} 32. h5 {[%clk 0:02:07.2]} 32... Rd6 {[%clk 0:00:20.8]} 33.
Qg7+ {[%clk 0:02:06.4]} 33... Kd2 {[%clk 0:00:21.2]} 34. Qb2+ {[%clk 0:02:03.5]}
34... Kd3 {[%clk 0:00:21]} 35. Qb1+ {[%clk 0:02:03.6]} 35... Kd2 {[%clk
0:00:21.2]} 36. Qb2+ {[%clk 0:01:58]} 36... Kd3 {[%clk 0:00:21.4]} 37. Qc1
{[%clk 0:01:58.1]} 37... c3 {[%clk 0:00:19.2]} 38. Kh2 {[%clk 0:01:57.5]} 38...
c2 {[%clk 0:00:19.1]} 39. f5 {[%clk 0:01:55]} 39... Kc3 {[%clk 0:00:18.1]} 40.
h6 {[%clk 0:01:49.2]} 40... Rd1 {[%clk 0:00:17.4]} 41. Qa3+ {[%clk 0:01:47.3]}
41... Kd2 {[%clk 0:00:16.9]} 42. Qb4+ {[%clk 0:01:46.3]} 42... Ke2 {[%clk
0:00:16.4]} 43. Qe4+ {[%clk 0:01:45.8]} 43... Kd2 {[%clk 0:00:16.2]} 44. Qb4+
{[%clk 0:01:28.4]} 44... Ke2 {[%clk 0:00:16.5]} 45. Qb1 {[%clk 0:01:27]} 45...
cxb1=Q {[%clk 0:00:15.6]} 0-1

[Event "*** SCC Grand Prix: Titled Tuesday Blitz"]
[Site "Chess.com"]
[Date "2020.08.25"]
[Round "9"]
[White "Gvetadze"]
[Black "esrosenberg"]
[Result "1-0"]
[WhiteElo "2397"]
[BlackElo "2194"]
[TimeControl "180+1"]
[EndTime "11:46:22 PDT"]
[Termination "Gvetadze won on time"]

1. Nf3 {[%clk 0:03:00.9]} 1... Nf6 {[%clk 0:02:59.4]} 2. g3 {[%clk 0:03:01.8]}
2... b5 {[%clk 0:02:58.8]} 3. Bg2 {[%clk 0:03:02.4]} 3... Bb7 {[%clk 0:02:59.4]}
4. O-O {[%clk 0:03:03]} 4... c5 {[%clk 0:03:00]} 5. Ne1 {[%clk 0:03:03.6]} 5...
Bxg2 {[%clk 0:02:59.2]} 6. Nxg2 {[%clk 0:03:04.5]} 6... h5 {[%clk 0:02:55.3]} 7.
a4 {[%clk 0:03:05.4]} 7... b4 {[%clk 0:02:54.2]} 8. d4 {[%clk 0:03:05]} 8... c4
{[%clk 0:02:48.2]} 9. c3 {[%clk 0:03:03.9]} 9... a5 {[%clk 0:02:44.2]} 10. Nd2
{[%clk 0:03:02.7]} 10... d5 {[%clk 0:02:37.7]} 11. e4 {[%clk 0:03:02.9]} 11...
e6 {[%clk 0:02:29.1]} 12. exd5 {[%clk 0:03:01.7]} 12... exd5 {[%clk 0:02:30]}
13. Re1+ {[%clk 0:03:01.5]} 13... Be7 {[%clk 0:02:30.4]} 14. Qe2 {[%clk
0:03:00.3]} 14... Ra7 {[%clk 0:02:27.6]} 15. Nf3 {[%clk 0:03:00.5]} 15... Ne4
{[%clk 0:02:22.2]} 16. Ne5 {[%clk 0:02:59.2]} 16... bxc3 {[%clk 0:01:47.5]} 17.
bxc3 {[%clk 0:02:58.6]} 17... Nxc3 {[%clk 0:01:46.6]} 18. Qf3 {[%clk 0:02:58.7]}
18... O-O {[%clk 0:01:02.3]} 19. Qxc3 {[%clk 0:02:57.6]} 19... Bb4 {[%clk
0:01:02.9]} 20. Qe3 {[%clk 0:02:57.2]} 20... Bxe1 {[%clk 0:01:03.5]} 21. Nxe1
{[%clk 0:02:57.4]} 21... Re8 {[%clk 0:00:58.1]} 22. Qf4 {[%clk 0:02:56.3]} 22...
f6 {[%clk 0:00:48.9]} 23. N5f3 {[%clk 0:02:55.4]} 23... Rae7 {[%clk 0:00:41.4]}
24. Ba3 {[%clk 0:02:54.3]} 24... Re4 {[%clk 0:00:38.8]} 25. Qf5 {[%clk
0:02:54.3]} 25... Nc6 {[%clk 0:00:34.8]} 26. Nc2 {[%clk 0:02:46.9]} 26... Re2
{[%clk 0:00:20.5]} 27. Ne3 {[%clk 0:02:46.2]} 27... R2xe3 {[%clk 0:00:10.2]} 28.
fxe3 {[%clk 0:02:45.6]} 28... Rxe3 {[%clk 0:00:11.1]} 29. Bc1 {[%clk 0:02:39.1]}
29... Re4 {[%clk 0:00:10.5]} 30. Bf4 {[%clk 0:02:32.8]} 30... Nb4 {[%clk
0:00:10.3]} 31. Qxh5 {[%clk 0:01:29.5]} 31... Qe8 {[%clk 0:00:10.1]} 32. Qxe8+
{[%clk 0:01:23.1]} 32... Rxe8 {[%clk 0:00:11]} 33. Bd2 {[%clk 0:01:21.9]} 33...
Re2 {[%clk 0:00:04.7]} 34. Rb1 {[%clk 0:01:21.1]} 34... Nc2 {[%clk 0:00:03]} 35.
Bxa5 {[%clk 0:01:15.3]} 35... Re3 {[%clk 0:00:02]} 36. Kf2 {[%clk 0:01:14]} 1-0

[Event "*** SCC Grand Prix: Titled Tuesday Blitz"]
[Site "Chess.com"]
[Date "2020.08.25"]
[Round "9"]
[White "Fortitudine"]
[Black "kobemagic"]
[Result "0-1"]
[WhiteElo "2232"]
[BlackElo "2401"]
[TimeControl "180+1"]
[EndTime "11:46:27 PDT"]
[Termination "kobemagic won by resignation"]

1. c4 {[%clk 0:03:00.9]} 1... g6 {[%clk 0:02:59.5]} 2. g3 {[%clk 0:03:00.7]}
2... Bg7 {[%clk 0:03:00.4]} 3. Bg2 {[%clk 0:03:00.8]} 3... Nf6 {[%clk
0:03:00.6]} 4. Nc3 {[%clk 0:03:00.8]} 4... O-O {[%clk 0:03:01.1]} 5. e4 {[%clk
0:03:01.1]} 5... d6 {[%clk 0:03:01.4]} 6. d3 {[%clk 0:03:01.4]} 6... c5 {[%clk
0:03:01.8]} 7. Nge2 {[%clk 0:03:01.8]} 7... Nc6 {[%clk 0:03:02.4]} 8. O-O {[%clk
0:03:01.2]} 8... a6 {[%clk 0:03:03.2]} 9. h3 {[%clk 0:02:58.8]} 9... Rb8 {[%clk
0:03:03.5]} 10. a4 {[%clk 0:02:58.8]} 10... Ne8 {[%clk 0:03:00.7]} 11. Be3
{[%clk 0:02:57.5]} 11... Nd4 {[%clk 0:02:59.5]} 12. f4 {[%clk 0:02:43.1]} 12...
Nc7 {[%clk 0:02:57.9]} 13. Kh2 {[%clk 0:02:39.3]} 13... b5 {[%clk 0:02:52.1]}
14. axb5 {[%clk 0:02:38.1]} 14... axb5 {[%clk 0:02:52.3]} 15. cxb5 {[%clk
0:02:16.7]} 15... Ncxb5 {[%clk 0:02:50]} 16. Nd5 {[%clk 0:02:04.6]} 16... Nxe2
{[%clk 0:02:45.1]} 17. Qxe2 {[%clk 0:02:05.5]} 17... e6 {[%clk 0:02:44.6]} 18.
Nc3 {[%clk 0:02:04.6]} 18... Nxc3 {[%clk 0:02:43.6]} 19. bxc3 {[%clk 0:02:05]}
19... Bxc3 {[%clk 0:02:44.2]} 20. Rac1 {[%clk 0:01:59.5]} 20... Bg7 {[%clk
0:02:41.3]} 21. Rfd1 {[%clk 0:01:50.4]} 21... Ba6 {[%clk 0:02:41]} 22. Qf2
{[%clk 0:01:49.6]} 22... Rb2 {[%clk 0:02:38.8]} 23. Rc2 {[%clk 0:01:49.9]} 23...
Rxc2 {[%clk 0:02:21.7]} 24. Qxc2 {[%clk 0:01:50.8]} 24... Qa5 {[%clk 0:02:21.8]}
25. d4 {[%clk 0:01:47.9]} 25... cxd4 {[%clk 0:02:05]} 26. Bxd4 {[%clk
0:01:48.8]} 26... Rc8 {[%clk 0:02:04.6]} 27. Qd2 {[%clk 0:01:33.1]} 27... Qxd2
{[%clk 0:01:57.4]} 28. Rxd2 {[%clk 0:01:34]} 28... Bxd4 {[%clk 0:01:58.1]} 29.
Rxd4 {[%clk 0:01:34.3]} 29... Rc6 {[%clk 0:01:39.4]} 30. g4 {[%clk 0:00:54.3]}
30... Kf8 {[%clk 0:01:37.3]} 31. Kg3 {[%clk 0:00:53.9]} 31... Ke7 {[%clk
0:01:37.4]} 32. Ra4 {[%clk 0:00:46.4]} 32... Kd7 {[%clk 0:01:28.2]} 33. Kh4
{[%clk 0:00:39.6]} 33... h6 {[%clk 0:01:26.8]} 34. f5 {[%clk 0:00:37.4]} 34...
Kc7 {[%clk 0:01:20]} 35. fxg6 {[%clk 0:00:27.3]} 35... fxg6 {[%clk 0:01:18.2]}
36. e5 {[%clk 0:00:18.3]} 36... d5 {[%clk 0:01:17.9]} 37. Rf4 {[%clk 0:00:18.7]}
37... g5+ {[%clk 0:01:13.7]} 0-1

[Event "*** SCC Grand Prix: Titled Tuesday Blitz"]
[Site "Chess.com"]
[Date "2020.08.25"]
[Round "9"]
[White "VinzentSpitzl"]
[Black "karinachess1"]
[Result "0-1"]
[WhiteElo "2369"]
[BlackElo "2493"]
[TimeControl "180+1"]
[EndTime "11:46:29 PDT"]
[Termination "karinachess1 won by resignation"]

1. e4 {[%clk 0:03:00.9]} 1... c5 {[%clk 0:02:59.8]} 2. Nf3 {[%clk 0:03:00.7]}
2... e6 {[%clk 0:02:59.7]} 3. g3 {[%clk 0:03:00.2]} 3... Nc6 {[%clk 0:02:53.5]}
4. Bg2 {[%clk 0:03:00]} 4... Nf6 {[%clk 0:02:53.7]} 5. Qe2 {[%clk 0:02:59.3]}
5... d6 {[%clk 0:02:47.6]} 6. O-O {[%clk 0:02:59.2]} 6... e5 {[%clk 0:02:45.7]}
7. h3 {[%clk 0:02:58.1]} 7... Be7 {[%clk 0:02:43.9]} 8. c3 {[%clk 0:02:54.7]}
8... O-O {[%clk 0:02:43.8]} 9. Rd1 {[%clk 0:02:55.2]} 9... Qc7 {[%clk
0:02:41.4]} 10. d4 {[%clk 0:02:55.2]} 10... cxd4 {[%clk 0:02:37.7]} 11. cxd4
{[%clk 0:02:55.4]} 11... Nxd4 {[%clk 0:02:20.9]} 12. Nxd4 {[%clk 0:02:55.6]}
12... exd4 {[%clk 0:02:21.8]} 13. Bf4 {[%clk 0:02:56]} 13... Be6 {[%clk
0:02:10.5]} 14. Na3 {[%clk 0:02:50.7]} 14... Rac8 {[%clk 0:01:55.8]} 15. Rxd4
{[%clk 0:02:39.5]} 15... a6 {[%clk 0:01:31.2]} 16. Rad1 {[%clk 0:02:39.1]} 16...
Rfd8 {[%clk 0:01:27.6]} 17. e5 {[%clk 0:02:23.7]} 17... dxe5 {[%clk 0:01:24.9]}
18. Bxe5 {[%clk 0:02:23.1]} 18... Qb6 {[%clk 0:01:18.4]} 19. Rxd8+ {[%clk
0:02:19.8]} 19... Rxd8 {[%clk 0:01:17.8]} 20. Rxd8+ {[%clk 0:02:20.3]} 20...
Bxd8 {[%clk 0:01:09.8]} 21. Nc4 {[%clk 0:02:20.6]} 21... Qb5 {[%clk 0:01:02.5]}
22. Qd2 {[%clk 0:02:17.4]} 22... Be7 {[%clk 0:00:55.4]} 23. Bd6 {[%clk
0:02:10.8]} 23... Bxd6 {[%clk 0:00:30.9]} 24. Nxd6 {[%clk 0:02:10.7]} 24... Qd7
{[%clk 0:00:30.8]} 25. Qb4 {[%clk 0:02:00.4]} 25... Nd5 {[%clk 0:00:20.4]} 26.
Qc5 {[%clk 0:01:52.9]} 26... b6 {[%clk 0:00:20.8]} 27. Qa3 {[%clk 0:01:44.3]}
27... h6 {[%clk 0:00:16.5]} 28. Nc4 {[%clk 0:01:40]} 28... b5 {[%clk 0:00:15.7]}
29. Ne5 {[%clk 0:01:37.4]} 29... Qc7 {[%clk 0:00:16]} 30. Nd3 {[%clk 0:01:36.1]}
30... Qc2 {[%clk 0:00:15.3]} 31. b4 {[%clk 0:01:20.5]} 31... Nc3 {[%clk
0:00:14.1]} 32. Nc5 {[%clk 0:01:20.4]} 32... Qd1+ {[%clk 0:00:13.8]} 33. Kh2
{[%clk 0:01:14.8]} 33... Ne2 {[%clk 0:00:13.8]} 0-1

[Event "*** SCC Grand Prix: Titled Tuesday Blitz"]
[Site "Chess.com"]
[Date "2020.08.25"]
[Round "9"]
[White "Lenyas66"]
[Black "KarpovVadim"]
[Result "1/2-1/2"]
[WhiteElo "2440"]
[BlackElo "2321"]
[TimeControl "180+1"]
[EndTime "11:46:29 PDT"]
[Termination "Game drawn by agreement"]

1. e4 {[%clk 0:03:00.9]} 1... e6 {[%clk 0:02:59.4]} 2. d4 {[%clk 0:03:00.3]}
2... d5 {[%clk 0:02:59.2]} 3. Nd2 {[%clk 0:03:00.2]} 3... dxe4 {[%clk 0:02:59]}
4. Nxe4 {[%clk 0:03:00.3]} 4... Bd7 {[%clk 0:02:59.7]} 5. Nf3 {[%clk 0:03:00.3]}
5... Bc6 {[%clk 0:03:00.6]} 6. Bd3 {[%clk 0:03:00.3]} 6... Nd7 {[%clk
0:02:59.6]} 7. O-O {[%clk 0:03:00.2]} 7... Ngf6 {[%clk 0:02:59.9]} 8. Neg5
{[%clk 0:03:00.3]} 8... Bd6 {[%clk 0:02:57]} 9. Re1 {[%clk 0:03:00.3]} 9... O-O
{[%clk 0:02:50.3]} 10. Ne5 {[%clk 0:02:59.8]} 10... h6 {[%clk 0:02:41.9]} 11.
Nxc6 {[%clk 0:02:59.3]} 11... bxc6 {[%clk 0:02:40.7]} 12. Ne4 {[%clk 0:02:56.4]}
12... c5 {[%clk 0:02:36.3]} 13. Be3 {[%clk 0:02:46.8]} 13... Nd5 {[%clk
0:02:13.9]} 14. c3 {[%clk 0:02:12.5]} 14... Nxe3 {[%clk 0:02:11.4]} 15. fxe3
{[%clk 0:02:12.6]} 15... Be7 {[%clk 0:02:09.2]} 16. Bc2 {[%clk 0:02:05.2]} 16...
cxd4 {[%clk 0:02:05.5]} 17. exd4 {[%clk 0:02:03.3]} 17... c5 {[%clk 0:02:05.3]}
18. d5 {[%clk 0:01:52.7]} 18... exd5 {[%clk 0:01:49.1]} 19. Qxd5 {[%clk
0:01:52.1]} 19... Nf6 {[%clk 0:01:43.1]} 20. Qf5 {[%clk 0:01:41.9]} 20... g6
{[%clk 0:01:24.6]} 21. Qf4 {[%clk 0:01:41.5]} 21... Nxe4 {[%clk 0:01:20.4]} 22.
Bxe4 {[%clk 0:01:39.1]} 22... Bg5 {[%clk 0:01:18.5]} 23. Qf3 {[%clk 0:01:30.8]}
23... Rb8 {[%clk 0:01:17.7]} 24. Rad1 {[%clk 0:01:25.4]} 24... Qf6 {[%clk
0:01:14.1]} 25. b3 {[%clk 0:01:21.2]} 25... Qxf3 {[%clk 0:01:12.1]} 26. Bxf3
{[%clk 0:01:21.2]} 26... Rfd8 {[%clk 0:01:11.5]} 27. Kf2 {[%clk 0:01:08.4]}
27... Bd2 {[%clk 0:01:09.7]} 28. Re7 {[%clk 0:01:03.4]} 28... Bxc3 {[%clk
0:01:07.7]} 29. Rxa7 {[%clk 0:01:01.1]} 29... Rxd1 {[%clk 0:01:01.4]} 30. Bxd1
{[%clk 0:01:00.5]} 30... Bd4+ {[%clk 0:00:57.3]} 31. Kf3 {[%clk 0:00:59.4]}
31... Kg7 {[%clk 0:00:44.9]} 32. Be2 {[%clk 0:00:55.6]} 32... c4 {[%clk
0:00:41.2]} 33. Rd7 {[%clk 0:00:53.5]} 33... cxb3 {[%clk 0:00:39.4]} 34. Rxd4
{[%clk 0:00:45.5]} 34... b2 {[%clk 0:00:37.7]} 35. Bd3 {[%clk 0:00:44.2]} 35...
b1=Q {[%clk 0:00:37.8]} 36. Bxb1 {[%clk 0:00:42.8]} 36... Rxb1 {[%clk
0:00:38.7]} 37. Ra4 {[%clk 0:00:42.3]} 37... Rb2 {[%clk 0:00:37.7]} 38. h3
{[%clk 0:00:41.5]} 38... h5 {[%clk 0:00:34.5]} 1/2-1/2

[Event "*** SCC Grand Prix: Titled Tuesday Blitz"]
[Site "Chess.com"]
[Date "2020.08.25"]
[Round "9"]
[White "phoenix_sjh"]
[Black "Chessdemon2019"]
[Result "1/2-1/2"]
[WhiteElo "2504"]
[BlackElo "2365"]
[TimeControl "180+1"]
[EndTime "11:46:31 PDT"]
[Termination "Game drawn by repetition"]

1. d4 {[%clk 0:03:00.9]} 1... Nf6 {[%clk 0:02:56.5]} 2. c4 {[%clk 0:03:01]} 2...
e6 {[%clk 0:02:56.7]} 3. Nc3 {[%clk 0:03:01.2]} 3... Bb4 {[%clk 0:02:56.8]} 4.
Qc2 {[%clk 0:03:01.5]} 4... b6 {[%clk 0:02:56.9]} 5. e4 {[%clk 0:03:01.1]} 5...
Bxc3+ {[%clk 0:02:56.6]} 6. bxc3 {[%clk 0:03:01.1]} 6... d6 {[%clk 0:02:56.1]}
7. Bd3 {[%clk 0:03:01]} 7... e5 {[%clk 0:02:55.7]} 8. Nf3 {[%clk 0:02:58.7]}
8... Nc6 {[%clk 0:02:52.1]} 9. d5 {[%clk 0:02:47.6]} 9... Na5 {[%clk 0:02:51.8]}
10. Bg5 {[%clk 0:02:43.8]} 10... O-O {[%clk 0:02:51.4]} 11. h3 {[%clk
0:02:38.9]} 11... h6 {[%clk 0:02:51.5]} 12. Bh4 {[%clk 0:02:39.1]} 12... Ba6
{[%clk 0:02:49.1]} 13. Nd2 {[%clk 0:02:38.8]} 13... g5 {[%clk 0:02:45.3]} 14.
Bg3 {[%clk 0:02:38.7]} 14... Nh5 {[%clk 0:02:46.1]} 15. h4 {[%clk 0:02:30.4]}
15... Nf4 {[%clk 0:02:45.7]} 16. hxg5 {[%clk 0:02:30]} 16... Qxg5 {[%clk
0:02:39.1]} 17. Bf1 {[%clk 0:02:01.6]} 17... f5 {[%clk 0:02:26.6]} 18. O-O-O
{[%clk 0:01:55.1]} 18... fxe4 {[%clk 0:01:49.6]} 19. Nxe4 {[%clk 0:01:50.8]}
19... Qg6 {[%clk 0:01:49.6]} 20. Nd2 {[%clk 0:01:21.3]} 20... Qxc2+ {[%clk
0:01:44.4]} 21. Kxc2 {[%clk 0:01:22.2]} 21... Kg7 {[%clk 0:01:44.7]} 22. Rh4
{[%clk 0:01:13.9]} 22... Ng6 {[%clk 0:01:42.4]} 23. Re4 {[%clk 0:01:04.2]} 23...
Bc8 {[%clk 0:01:40.2]} 24. Bd3 {[%clk 0:01:01.9]} 24... Bf5 {[%clk 0:01:39.9]}
25. Ree1 {[%clk 0:01:01.9]} 25... Bxd3+ {[%clk 0:01:40.1]} 26. Kxd3 {[%clk
0:01:02.8]} 26... Nf4+ {[%clk 0:01:40.4]} 27. Kc2 {[%clk 0:00:49.9]} 27... Rf6
{[%clk 0:01:40]} 28. Rh1 {[%clk 0:00:42.6]} 28... Raf8 {[%clk 0:01:34.4]} 29.
Rh2 {[%clk 0:00:41.5]} 29... Ne2 {[%clk 0:01:29]} 30. Bh4 {[%clk 0:00:22.5]}
30... R6f7 {[%clk 0:01:27.7]} 31. Kd3 {[%clk 0:00:21.7]} 31... Nf4+ {[%clk
0:01:27.5]} 32. Kc2 {[%clk 0:00:22]} 32... h5 {[%clk 0:01:25.1]} 33. Rdh1 {[%clk
0:00:20.8]} 33... Kg6 {[%clk 0:01:25.1]} 34. Bg3 {[%clk 0:00:20.3]} 34... Rh7
{[%clk 0:01:24.9]} 35. a4 {[%clk 0:00:17.5]} 35... Rfh8 {[%clk 0:01:23.2]} 36.
Bxf4 {[%clk 0:00:17.4]} 36... exf4 {[%clk 0:01:23.1]} 37. Rh4 {[%clk 0:00:18.1]}
37... Kg5 {[%clk 0:01:23]} 38. Ne4+ {[%clk 0:00:16.5]} 38... Kf5 {[%clk
0:01:23.4]} 39. Kd3 {[%clk 0:00:16.5]} 39... Nxc4 {[%clk 0:01:20.8]} 40. g4+
{[%clk 0:00:16.4]} 40... Ke5 {[%clk 0:01:17.9]} 41. Kxc4 {[%clk 0:00:11.1]}
41... Kxe4 {[%clk 0:01:18.2]} 42. gxh5 {[%clk 0:00:10.3]} 42... Kf3 {[%clk
0:01:18.6]} 43. R1h3+ {[%clk 0:00:10.2]} 43... Kxf2 {[%clk 0:01:18.2]} 44. Rxf4+
{[%clk 0:00:10.5]} 44... Kg2 {[%clk 0:01:18.9]} 45. Rhf3 {[%clk 0:00:10.6]}
45... Rxh5 {[%clk 0:01:17.2]} 46. Rf2+ {[%clk 0:00:11.5]} 46... Kg3 {[%clk
0:01:17.3]} 47. R2f3+ {[%clk 0:00:11.9]} 47... Kg2 {[%clk 0:01:17.6]} 48. Rf2+
{[%clk 0:00:12.4]} 48... Kg3 {[%clk 0:01:18.2]} 49. R2f3+ {[%clk 0:00:12.9]}
49... Kg2 {[%clk 0:01:18.9]} 1/2-1/2